Cogmind - Beta 11.1 @@@ ROGUE MODE // 2022.04.30 @ 00:38:09 Player: art-hropod Result: Destroyed by G-47 Trooper with Particle Gun Performance ------------- Evolutions (2) 1000 Regions Visited (5) 1000 Robots Destroyed (23) 115 Value Destroyed (626) 626 Prototype IDs (1) 20 Alien Tech Used (0) 0 Bonus (300) 300 TOTAL SCORE: 3061 Bonus ------- Aligned with FarCom 300 Cogmind --------- Core Integrity 0/550 Matter 300/300 Energy 257/265 System Corruption 0% Temperature Hot (235) Movement Walking (120) Location -8/Materials Parts ------- > --- POWER (1) -------- Improved Ion Engine > --- PROPULSION (4) --- Aluminum Leg Aluminum Leg Aluminum Leg > --- UTILITY (4) ------ Structural Scanner Light Armor Plating Hacking Suite > --- WEAPON (2) ------- Heavy EM Pulse Gun Particle Gun > --- INVENTORY (5) ---- Light Ion Engine Tractor Beam Welding Torch Peak State ------------ > --- POWER ------------ Light Ion Engine > --- PROPULSION ------- Aluminum Leg Aluminum Leg Aluminum Leg > --- UTILITY ---------- (None) > --- WEAPON ----------- Firepult > --- INVENTORY -------- Heavy EM Pulse Gun [Rating: 24] Favorites ----------- Power Ion Engine Engine Ion Engine Propulsion Aluminum Leg Treads Improved Treads Leg Aluminum Leg Utility Small Storage Unit Device Trap Scanner Storage Small Storage Unit Hackware Hacking Suite Protection Light Armor Plating Weapon Small Laser Energy Gun Small Laser Energy Cannon Firepult Ballistic Gun Assault Rifle Launcher Shock Bomb Launcher Special Weapon Welding Torch Build | -11 -10 -10 -10 -9 -8 ------- Run | Scr Mat Min Exi Min Mat Slots Evolved 4 | . . . . . 4 Power . | . . . . . . Propulsion 2 | . . . . . 2 Utility 2 | . . . . . 2 Weapon . | . . . . . . Parts Attached 36 | 6 . . . 3 27 Power 5 | 1 . . . . 4 Engine 5 | 1 . . . . 4 Core . | . . . . . . Reactor . | . . . . . . Propulsion 8 | 2 . . . . 6 Treads 1 | . . . . . 1 Leg 7 | 2 . . . . 5 Wheel . | . . . . . . Hover . | . . . . . . Flight . | . . . . . . Utility 9 | 1 . . . 1 7 Device 4 | . . . . . 4 Storage 2 | 1 . . . 1 . Processor . | . . . . . . Hackware 1 | . . . . . 1 Protection 2 | . . . . . 2 Artifact . | . . . . . . Weapon 14 | 2 . . . 2 10 Energy Gun 9 | 2 . . . 2 5 Energy Cannon 2 | . . . . . 2 Ballistic Gun 1 | . . . . . 1 Ballistic Cannon . | . . . . . . Launcher 1 | . . . . . 1 Special Weapon 1 | . . . . . 1 Impact Weapon . | . . . . . . Slashing Weapon . | . . . . . . Piercing Weapon . | . . . . . . Special Melee Weapon . | . . . . . . Unidentified Prototypes 1 | . . . . . 1 Parts Lost 21 | . . . . 2 19 Power 4 | . . . . . 4 Propulsion 5 | . . . . 1 4 Utility 6 | . . . . 1 5 Weapon 6 | . . . . . 6 Highest Loss Streak 14 | . . . . 2 14 To Critical Strikes . | . . . . . . Average Slot Usage (%) 74 | . 85 85 85 86 59 Engine 11 | . 14 14 14 14 7 Leg 21 | . 28 28 28 22 16 Device 3 | . . . . . 8 Storage 11 | . 14 14 14 19 5 Protection 1 | . . . . . 4 Energy Gun 22 | . 28 28 28 28 14 Naked Turns . | . . . . . . Heaviest Build 27 | 12 12 12 12 15 27 Greatest Support 30 | 20 20 20 20 20 30 Greatest Overweight (x) 8 | . . . . 1 8 Average Overweight (x) . | . . . . . . Largest Inventory Capacity 8 | 8 8 8 8 8 8 Average Capacity 7 | 6 8 8 8 8 6 Most Carried 8 | 2 5 5 7 8 8 Average Carried 5 | 1 3 5 5 7 5 Final Capacity 8 | 8 8 8 8 8 5 Final Carried 8 | 2 5 5 7 8 3 Class Distribution -------------------- 84% | Mutant 15% | Scavenger-Mutant Dominant Class ---------------- Mutant | -10/Materials Mutant | -10/Mines Mutant | -10/Exiles Mutant | -9/Mines Mutant | -8/Materials Resources | -11 -10 -10 -10 -9 -8 ----------- Run | Scr Mat Min Exi Min Mat Matter Collected 478 | 32 111 . . 125 210 Remotely . | . . . . . . Salvage Created 827 | . 143 . . 111 573 Parts 52 | . 10 . . 13 29 Haulers Intercepted . | . . . . . . Recyclers Shooed . | . . . . . . Parts Field Recycled . | . . . . . . Retrieved Matter . | . . . . . . Parts Self-Destructed . | . . . . . . Prevented . | . . . . . . Kills | -11 -10 -10 -10 -9 -8 ------- Run | Scr Mat Min Exi Min Mat Combat Hostiles Destroyed 18 | . 3 . . 7 8 Guns 15 | . 3 . . 7 5 Cannons 2 | . . . . . 2 AOE 1 | . . . . . 1 Classes Destroyed 8 | . 2 . . 1 5 Worker 1 | . . . . . 1 Builder 1 | . . . . . 1 Recycler 1 | . . . . . 1 Operator 1 | . . . . . 1 Watcher 1 | . 1 . . . . Swarmer 7 | . . . . 7 . Grunt 10 | . 3 . . . 7 Sentry 1 | . . . . . 1 Best Kill Streak 5 | . 3 . . 4 5 Combat Bots Only 4 | . 3 . . 4 2 Max Kills in Single Turn 3 | . 1 . . 2 3 Gunslinging 1 | . . . . 1 . Exploded 1 | . . . . . 1 Melee . | . . . . . . Uniques/NPCs Destroyed . | . . . . . . Combat | -11 -10 -10 -10 -9 -8 -------- Run | Scr Mat Min Exi Min Mat Damage Taken 2936 | . 168 . . 323 2445 Core 633 | . 36 . . 40 557 Absorbed by Shields . | . . . . . . Core Remaining (%) 84 | 100 . . . 69 . Volleys Fired 71 | 2 17 . . 15 37 Largest 2 | 2 2 . . 2 2 Hottest 250 | 80 80 . . 105 250 Shots Fired 120 | 4 34 . . 25 57 Gun 116 | 4 34 . . 25 53 Cannon 3 | . . . . . 3 Launcher 1 | . . . . . 1 Special . | . . . . . . Kinetic 6 | . . . . . 6 Thermal 86 | 4 34 . . 20 28 Explosive . | . . . . . . Electromagnetic 28 | . . . . 5 23 Robot Hit Streak 14 | 2 7 . . 7 14 Robot Miss Streak 4 | 2 4 . . 4 2 Penetration Max . | . . . . . . Secondary Targets 6 | . 2 . . 3 1 Max Gunslinging Chain 1 | . 1 . . 1 1 Shots Hit Robots 80 | 2 21 . . 15 42 Core Hits 42 | . 9 . . 7 26 Critical Kills . | . . . . . . Critical Parts Destroyed . | . . . . . . Critical Strikes 2 | . . . . 1 1 Corrupt 2 | . . . . 1 1 Melee Attacks . | . . . . . . Impact . | . . . . . . Slashing . | . . . . . . Piercing . | . . . . . . Sneak Attacks . | . . . . . . Combat Hostiles . | . . . . . . Follow-up Attacks . | . . . . . . Damage Inflicted 1315 | 42 230 . . 197 846 Guns 1059 | 42 230 . . 197 590 Cannons 76 | . . . . . 76 Explosions 180 | . . . . . 180 Melee . | . . . . . . Ramming . | . . . . . . Kinetic 82 | . . . . . 82 Thermal 866 | 42 230 . . 156 438 Explosive . | . . . . . . Electromagnetic 367 | . . . . 41 326 Impact . | . . . . . . Slashing . | . . . . . . Piercing . | . . . . . . Highest Corruption . | . . . . . . Average Corruption . | . . . . . . Corruption Purged . | . . . . . . Corruption Blocked . | . . . . . . Overload Shots . | . . . . . . Overflow Damage . | . . . . . . Projectiles . | . . . . . . Explosions . | . . . . . . Melee . | . . . . . . Knockbacks . | . . . . . . Impact . | . . . . . . Kinetic . | . . . . . . Secondary . | . . . . . . Self-Inflicted Damage 13 | . . . . . 13 Shots 2 | . . . . . 2 Rammed . | . . . . . . Targets Rammed . | . . . . . . Kicked . | . . . . . . Crushed . | . . . . . . Highest Temperature 462 | 36 258 . . 225 462 Average Temperature 115 | 21 88 . . 100 136 Received Heat Transfer 1491 | . 96 . . . 1395 Effects 3 | . . . . 2 1 Energy Bleed 1 | . . . . . 1 Interference 2 | . . . . 2 . Siege Activations . | . . . . . . Robots Corrupted . | . . . . . . Combat Hostiles . | . . . . . . Parts Fried . | . . . . . . Impact Corruptions . | . . . . . . Robots Melted . | . . . . . . Combat Hostiles . | . . . . . . Parts Melted 3 | . . . . . 3 Heat Transferred 2465 | 100 525 . . 361 1479 Parts Sabotaged . | . . . . . . Parts Stolen . | . . . . . . Parts Stripped . | . . . . . . Power Chain Reactions 1 | . . . . . 1 Missiles Intercepted . | . . . . . . Alert | -11 -10 -10 -10 -9 -8 ------- Run | Scr Mat Min Exi Min Mat Peak Influence 255 | . 122 47 . 155 255 Initial 60 | . . 47 . . 60 Average 81 | . 38 47 . 94 100 Maximum Alert Level 1 | . . . . . 1 Low Security (%) 97 | 100 100 100 . 100 94 Level 1 2 | . . . . . 5 Level 2 . | . . . . . . Level 3 . | . . . . . . Level 4 . | . . . . . . Level 5 . | . . . . . . High Security . | . . . . . . Max Security . | . . . . . . Squads Dispatched 4 | . . . . . 4 Investigation . | . . . . . . Extermination . | . . . . . . Reinforcement 4 | . . . . . 4 Assault . | . . . . . . Garrison . | . . . . . . Intercept . | . . . . . . Searches Triggered . | . . . . . . Construction Impeded 1 | . . . . . 1 Haulers Reinforced . | . . . . . . Active Scanning Responses . | . . . . . . Cargo Convoy Interrupts . | . . . . . . Stealth | -11 -10 -10 -10 -9 -8 --------- Run | Scr Mat Min Exi Min Mat Distress Signals . | . . . . . . Communications Jammed . | . . . . . . Distress Signals . | . . . . . . Times Spotted 30 | . 9 . . 8 13 Peak Tracking Total 5 | . 5 . . 4 5 Tactical Retreats 4 | . 1 . . 1 2 Traps | -11 -10 -10 -10 -9 -8 ------- Run | Scr Mat Min Exi Min Mat Traps Triggered . | . . . . . . Indirectly . | . . . . . . Trap Hack Attempts . | . . . . . . Triggered . | . . . . . . Disarmed . | . . . . . . Reprogrammed . | . . . . . . Reused . | . . . . . . Traps Extracted . | . . . . . . Installed . | . . . . . . Triggered . | . . . . . . Machines | -11 -10 -10 -10 -9 -8 ---------- Run | Scr Mat Min Exi Min Mat Machines Disabled 2 | . . . . . 2 Max in Single Turn 1 | . . . . . 1 Machines Sabotaged . | . . . . . . Garrisons Compromised . | . . . . . . Overloaded Fab Kills . | . . . . . . Hacking | -11 -10 -10 -10 -9 -8 --------- Run | Scr Mat Min Exi Min Mat Machines Accessed 1 | . . . . 1 . Terminals 1 | . . . . 1 . Fabricators . | . . . . . . Repair Stations . | . . . . . . Recycling Units . | . . . . . . Scanalyzers . | . . . . . . Garrison Access . | . . . . . . Total Hacks 1 | . . . . 1 . Successful 1 | . . . . 1 . Failed . | . . . . . . Catastrophic . | . . . . . . Database Lockouts . | . . . . . . Manual 2 | . . . 1 1 . Terminals 1 | . . . . 1 . Fabricators . | . . . . . . Repair Stations . | . . . . . . Recycling Units . | . . . . . . Scanalyzers . | . . . . . . Garrison Access . | . . . . . . Terminal Hacks 1 | . . . . 1 . Zone Layout 1 | . . . . 1 . Fabricator Hacks . | . . . . . . Repair Station Hacks . | . . . . . . Recycling Unit Hacks . | . . . . . . Scanalyzer . | . . . . . . Garrison Access Hacks . | . . . . . . Unauthorized Hacks . | . . . . . . Terminals . | . . . . . . Fabricators . | . . . . . . Repair Stations . | . . . . . . Recycling Units . | . . . . . . Scanalyzers . | . . . . . . Garrison Access . | . . . . . . Data Cores Recovered . | . . . . . . Used . | . . . . . . Hacking Detections . | . . . . . . Full Trace Events . | . . . . . . Feedback Events . | . . . . . . Feedback Blocked . | . . . . . . Robot Schematics Acquired . | . . . . . . Robots Built . | . . . . . . Authchips . | . . . . . . Time . | . . . . . . Total Robot Build Rating . | . . . . . . Part Schematics Acquired . | . . . . . . Parts Built . | . . . . . . Authchips . | . . . . . . Time . | . . . . . . Total Part Build Rating . | . . . . . . Parts Repaired . | . . . . . . Time . | . . . . . . Parts Recycled . | . . . . . . Recycled Matter . | . . . . . . Retrieved Matter . | . . . . . . Retrieved Components . | . . . . . . Parts Scanalyzed . | . . . . . . Part Schematics Acquired . | . . . . . . Parts Damaged . | . . . . . . Bothacking | -11 -10 -10 -10 -9 -8 ------------ Run | Scr Mat Min Exi Min Mat Used RIF Installer . | . . . . . . Robots Hacked . | . . . . . . Non-combat . | . . . . . . Combat . | . . . . . . Robot Hacks Applied . | . . . . . . Relay Couplers Released . | . . . . . . Fabnet Peak Effective % . | . . . . . . Robots Rewired . | . . . . . . Allies Hacked . | . . . . . . Hacks Repelled . | . . . . . . Allies | -11 -10 -10 -10 -9 -8 -------- Run | Scr Mat Min Exi Min Mat Total Allies . | . . . . . . Largest Group . | . . . . . . Highest-Rated Group . | . . . . . . Highest-Rated Ally . | . . . . . . Total Orders . | . . . . . . Ally Attacks . | . . . . . . Total Damage . | . . . . . . Kills . | . . . . . . Allies Corrupted . | . . . . . . Allies Melted . | . . . . . . Intel | -11 -10 -10 -10 -9 -8 ------- Run | Scr Mat Min Exi Min Mat Robot Analysis Total . | . . . . . . Derelict Logs Recovered . | . . . . . . Drone Launches . | . . . . . . Drone Recoveries . | . . . . . . Exploration | -11 -10 -10 -10 -9 -8 ------------- Run | Scr Mat Min Exi Min Mat Turns Passed 1855 | 58 248 138 262 373 776 Spaces Moved 1121 | 35 162 116 218 237 353 Core 11 | 4 . . . . 7 Treads 7 | . . . . . 7 Legs 1103 | 31 162 116 218 237 339 Wheels . | . . . . . . Hover . | . . . . . . Flight . | . . . . . . Fastest Speed 50 | 50 120 120 120 120 120 Average Speed 131 | 112 120 120 120 138 145 Slowest Speed 450 | 120 120 120 120 190 450 Overloaded Moves . | . . . . . . Propulsion Burnouts . | . . . . . . Robots Hopped . | . . . . . . Cave-ins Triggered . | . . . . . . Exploration Rate (%) 37 | 4 39 34 60 63 24 Regions Visited 5 Branch Regions 3 Pre-discovered Areas . | . . . . . . Known Exits Taken . | . . . . . . Unknown Exits Taken 5 | 1 1 1 1 1 . Scrap Searched 1 | . . . . 1 . Spaces Dug . | . . . . . . Terrain Destroyed 20 | . . . . . 20 Melee . | . . . . . . Projectile . | . . . . . . AOE 20 | . . . . . 20 Terrain Rammed . | . . . . . . Walls Destroyed . | . . . . . . Machines Disabled . | . . . . . . Actions | -11 -10 -10 -10 -9 -8 --------- Run | Scr Mat Min Exi Min Mat Total 1379 | 50 181 115 218 258 557 Wait 120 | . . . . . 120 Move 1116 | 34 161 115 217 236 353 Hop . | . . . . . . Pick Up 31 | 8 3 . 1 3 16 Fast Attach 5 | . . . . . 5 Attach 27 | 6 . . . 2 19 Detach 1 | . . . . . 1 Swap 4 | . . . . 1 3 Drop 4 | . . . . 1 3 Fire 71 | 2 17 . . 15 37 Melee . | . . . . . . Ram . | . . . . . . Kick . | . . . . . . Crush . | . . . . . . Escape Stasis . | . . . . . . Rewire . | . . . . . . Trap . | . . . . . . Miscellaneous . | . . . . . . Route ------- -11/Scrapyard -10/Materials (discovered 3 exits: [*Mat x2] / [*Min]) -10/Mines (discovered 2 exits: [*Mat] / *Exi) -10/Exiles -9/Mines -8/Materials History --------- Turn | Location | Event 4 | -11/Scrapyard | Discovered new exit (range 15) 59 | -11/Scrapyard | Entered Materials 161 | -10/Materials | Discovered new exit (range 3) 277 | -10/Materials | Discovered new exit (range 4) 289 | -10/Materials | Discovered new exit (range 16) 307 | -10/Materials | Build established: Mutant 307 | -10/Materials | Entered Mines 322 | -10/Mines | Discovered new exit (range 11) 324 | -10/Mines | Met a Derelict bent on vengeance 441 | -10/Mines | Deemed a non-threat by the Exiles lab entrance 441 | -10/Mines | Discovered new exit (range 5) 445 | -10/Mines | Entered Exiles 475 | -10/Exiles | Met 8R-AWN 497 | -10/Exiles | Met EX-HEX 537 | -10/Exiles | Met EX-BIN 555 | -10/Exiles | Aligned with FarCom system 556 | -10/Exiles | Given EX-Vault access code 583 | -10/Exiles | Opened EX-Vault 591 | -10/Exiles | Found Prototype Energy Cannon 618 | -10/Exiles | Warned to stay clear of 0b10 Research branches 650 | -10/Exiles | Met EX-DEC 697 | -10/Exiles | Discovered new exit (range 10) 707 | -10/Exiles | Left Exiles lab with Firepult 707 | -10/Exiles | Entered Mines 1069 | -9/Mines | Discovered new exit (range 7) 1080 | -9/Mines | Entered Materials 1080 | -8/Materials | Evolved 4 slots: Propulsion x2, Utility x2 1541 | -8/Materials | Core integrity fell below 50% 1541 | -8/Materials | Identified Firepult 1579 | -8/Materials | Lost 14 parts (3p2n4u5w) 1632 | -8/Materials | Core integrity fell below 20% 1856 | -8/Materials | Destroyed by G-47 Trooper with Particle Gun Last Messages --------------- 01714_ U-05 Engineer builds a Door. 01718_ U-05 Engineer lays Concrete. 01720_ U-05 Engineer builds a Wall. 01725_ U-05 Engineer lays Concrete. 01726_ U-05 Engineer builds a Wall. 01729_ K-01 Serf collects debris. 01730_ U-05 Engineer builds a Door. 01733_ K-01 Serf collects debris. 01734_ U-05 Engineer builds a Wall. 01737_ K-01 Serf collects debris. 01739_ U-05 Engineer lays Concrete. 01740_ K-01 Serf collects debris. 01741_ U-05 Engineer lays Concrete. 01752_ K-01 Serf cleans the Atomic Centrifuge. 01804_ O-16 Technician destroyed. 01809_ Acquired Hacking Suite. 01811_ Acquired 10 matter. 01836_ Connecting with Scanalyzer... 01836_ Current location identified: Materials 01848_ Scanalyzer disabled. Map ----- +----------------------------------------------------+ | ????????????############## [##?????????????????? | | ????????????#### = # #####+##?????????????????? | | ########????## # % +%! ! ###????????????????? | | ########????#### % # = ### ???????????????? | | ##?????### % [# = ### ????????? | | """ ##?????## ! + ????????? | | """ ##????#### % %# ####"#### ???????? | | """ ##############+## # ## ####???????? | | ######## ^ ! + "" ##??+######???????? | | ## # ^^^ # """ # ????????????????? | | #####+## # ^ # "" # ????????????????? | | ???## ## + ""T"" # # ????????????????? | | ???## ## """# """"" # "T" #?????????????????? | | ???## ## """#= ######## ????????????????? | | #??## + """#= + ????????????????? | | ##### # #%##################????????????????? | | ##### ####+##*#################?????????????????? | | + ##????????????????????????????????? | | # #####?????????????????????????????? | | #" """" #####?###########?????????????????? | | #T """" ##?###########?????????????????? | | #" """" ##### ##?????????????????? | | + ##### ##?????????????????? | | # ##?????????????????? | | # #### ######g#######?????????????????? | | # #### ## [ @ ###?????????????????? | | # #### ## g " ##??????????????????? | | # #### ## """ "" ##??????????????????? | | # #### ## """ S" ##??????????????????? | | # #### ## """ ##??????????????????? | | ###########+##+##### ##??????????????????? | | ########## # ##??????????????????? | | ?????????# [ # ##??????????????????? | | ?????????# "T" ############??????????????????? | | ?????????# """ ############??????????????????? | | ?????????###########?????????????????????????????? | | | | | | | | | | | | | | | | | | | | | | | | | | | | | +----------------------------------------------------+ Best States ------------- Heat Dissipation 31 Energy Generation 12 Energy Capacity 265 Matter Stores 300 Matter Capacity 350 Sight Range 16 Terrain Scan Density 10 Additional Mass Support 9 Armor Coverage 150 Evasion (%) 59 Recoil Reduction 1 Offensive Hacking 10 Item Schematics ----------------- None Robot Schematics ------------------ None Fabricated ------------ Nothing Alien Tech Used ----------------- None Achievements -------------- None Challenges ------------ None Game ------ Seed WarpHackingSuperbattery Manual? 0 Play Time 00:25:58 Cumulative 12.7 hours Start 2022.04.30 @ 00:16:53 End 2022.04.30 @ 00:38:09 Sessions 1 Manual Loads 0 Difficulty Rogue Special Mode None Game No. 17 Rogue 17 Adventurer 0 Explorer 0 Win Type - Total 0 Types 0/0/0/0/0/0/0/0/0 Lore% 10 Gallery% 18 Achievement% 12 Wizard Run 0 Options --------- ASCII 0 Keyboard 0 Movement Mouse Keybinds 0 Fullscreen 1 Font 32/SmallcapsGlow Map View 63x52 Tactical HUD 1 Map Filters NONE Filters NONE Steam 1 RUN: 55284d84-419d-4a40-b293-e9180720669c